[Event "Titled Tuesday Blitz April 05 Late 2022"]
[White "Karttunen, Mika"]
[Black "Danilov, Vladimir"]
[WhiteFideId "502081"]
[BlackFideId "1203398"]
[WhiteElo "2343"]
[BlackElo "2227"]
[Result "1-0"]
[Round "11"]
[TimeControl "180+1"]
[Date "2022.04.05"]
[WhiteClock "0:00:09"]
[BlackClock "0:00:04"]

1. d4 {[%clk 0:03:00]}  d5 {[%clk 0:02:59]} 2. c4 {[%clk 0:03:00]}  c6 {[%clk 0:03:00]} 3. Nc3 {[%clk 0:02:56]}  e6 {[%clk 0:03:00]} 4. Nf3 {[%clk 0:02:52]}  dxc4 {[%clk 0:02:59]} 5. e4 {[%clk 0:02:46]}  b5 {[%clk 0:02:57]} 6. e5 {[%clk 0:02:34]}  h6 {[%clk 0:02:55]} 7. Be2 {[%clk 0:02:30]}  Bb7 {[%clk 0:02:55]} 8. O-O {[%clk 0:02:24]}  a6 {[%clk 0:02:55]} 9. a4 {[%clk 0:02:20]}  Ne7 {[%clk 0:02:54]} 10. b3 {[%clk 0:02:07]}  cxb3 {[%clk 0:02:53]} 11. Qxb3 {[%clk 0:02:06]}  Nf5 {[%clk 0:02:47]} 12. Be3 {[%clk 0:01:54]}  Be7 {[%clk 0:02:47]} 13. Bd3 {[%clk 0:01:47]}  O-O {[%clk 0:02:37]} 14. Be4 {[%clk 0:01:10]}  Nd7 {[%clk 0:02:09]} 15. Rab1 {[%clk 0:00:46]}  Nb6 {[%clk 0:01:39]} 16. axb5 {[%clk 0:00:44]}  axb5 {[%clk 0:01:39]} 17. Nxb5 {[%clk 0:00:45]}  cxb5 {[%clk 0:01:39]} 18. Bxb7 {[%clk 0:00:44]}  Rb8 {[%clk 0:01:39]} 19. Be4 {[%clk 0:00:44]}  b4 {[%clk 0:01:36]} 20. Rfc1 {[%clk 0:00:41]}  Nxe3 {[%clk 0:01:27]} 21. fxe3 {[%clk 0:00:41]}  Bg5 {[%clk 0:01:27]} 22. Kf2 {[%clk 0:00:27]}  Kh8 {[%clk 0:00:55]} 23. g3 {[%clk 0:00:17]}  Nc8 {[%clk 0:00:41]} 24. h4 {[%clk 0:00:17]}  Be7 {[%clk 0:00:41]} 25. Rc4 {[%clk 0:00:13]}  Nb6 {[%clk 0:00:40]} 26. Rc6 {[%clk 0:00:13]}  Nd7 {[%clk 0:00:39]} 27. Bc2 {[%clk 0:00:13]}  Re8 {[%clk 0:00:34]} 28. Qd3 {[%clk 0:00:13]}  Nf8 {[%clk 0:00:35]} 29. Ba4 {[%clk 0:00:12]}  Qa5 {[%clk 0:00:34]} 30. Qb3 {[%clk 0:00:12]}  Rec8 {[%clk 0:00:33]} 31. Rcc1 {[%clk 0:00:11]}  Rxc1 {[%clk 0:00:32]} 32. Rxc1 {[%clk 0:00:12]}  Qa7 {[%clk 0:00:30]} 33. Bc6 {[%clk 0:00:09]}  Rc8 {[%clk 0:00:29]} 34. Rc2 {[%clk 0:00:09]}  Qb6 {[%clk 0:00:29]} 35. Be4 {[%clk 0:00:10]}  Rxc2+ {[%clk 0:00:29]} 36. Bxc2 {[%clk 0:00:11]}  Qc6 {[%clk 0:00:28]} 37. Qd3 {[%clk 0:00:10]}  h5 {[%clk 0:00:21]} 38. Qe4 {[%clk 0:00:05]}  Qxe4 {[%clk 0:00:20]} 39. Bxe4 {[%clk 0:00:06]}  g6 {[%clk 0:00:20]} 40. Ke2 {[%clk 0:00:06]}  Nd7 {[%clk 0:00:19]} 41. Kd3 {[%clk 0:00:07]}  Nb6 {[%clk 0:00:20]} 42. Nd2 {[%clk 0:00:08]}  Kg7 {[%clk 0:00:20]} 43. Nb3 {[%clk 0:00:07]}  Kh6 {[%clk 0:00:19]} 44. Bf3 {[%clk 0:00:07]}  g5 {[%clk 0:00:19]} 45. hxg5+ {[%clk 0:00:08]}  Kxg5 {[%clk 0:00:19]} 46. e4 {[%clk 0:00:08]}  h4 {[%clk 0:00:17]} 47. gxh4+ {[%clk 0:00:08]}  Kxh4 {[%clk 0:00:17]} 48. d5 {[%clk 0:00:09]}  exd5 {[%clk 0:00:18]} 49. exd5 {[%clk 0:00:10]}  Kg5 {[%clk 0:00:15]} 50. d6 {[%clk 0:00:10]}  Bd8 {[%clk 0:00:15]} 51. Ke4 {[%clk 0:00:11]}  Nd7 {[%clk 0:00:14]} 52. Be2 {[%clk 0:00:10]}  Nf8 {[%clk 0:00:12]} 53. Bc4 {[%clk 0:00:10]}  f6 {[%clk 0:00:12]} 54. e6 {[%clk 0:00:10]}  f5+ {[%clk 0:00:12]} 55. Kd5 {[%clk 0:00:10]}  Ng6 {[%clk 0:00:12]} 56. Nd4 {[%clk 0:00:10]}  Kf6 {[%clk 0:00:12]} 57. Kc6 {[%clk 0:00:09]}  Nf4 {[%clk 0:00:12]} 58. Kd7 {[%clk 0:00:09]}  Bb6 {[%clk 0:00:11]} 59. e7 {[%clk 0:00:09]}  Bxd4 {[%clk 0:00:11]} 60. e8=Q {[%clk 0:00:09]}  Bc3 {[%clk 0:00:11]} 61. Qe7+ {[%clk 0:00:09]}  Kg6 {[%clk 0:00:11]} 62. Bf7+ {[%clk 0:00:09]}  Kh6 {[%clk 0:00:11]} 63. Qh4+ {[%clk 0:00:09]}  Kg7 {[%clk 0:00:11]} 64. Bb3 {[%clk 0:00:09]}  Ng6 {[%clk 0:00:11]} 65. Qg5 {[%clk 0:00:08]}  Bd2 {[%clk 0:00:10]} 66. Qxf5 {[%clk 0:00:07]}  Bc3 {[%clk 0:00:07]} 67. Qf7+ {[%clk 0:00:07]}  Kh6 {[%clk 0:00:07]} 68. Qf1 {[%clk 0:00:06]}  Kg5 {[%clk 0:00:07]} 69. Ke8 {[%clk 0:00:06]}  Ne5 {[%clk 0:00:07]} 70. d7 {[%clk 0:00:06]}  Nxd7 {[%clk 0:00:06]} 71. Kxd7 {[%clk 0:00:06]}  Be5 {[%clk 0:00:07]} 72. Ke6 {[%clk 0:00:07]}  Bf4 {[%clk 0:00:07]} 73. Qf3 {[%clk 0:00:07]}  Bc7 {[%clk 0:00:07]} 74. Qg2+ {[%clk 0:00:07]}  Kh4 {[%clk 0:00:07]} 75. Kf5 {[%clk 0:00:07]}  Bg3 {[%clk 0:00:06]} 76. Bc2 {[%clk 0:00:07]}  b3 {[%clk 0:00:05]} 77. Bxb3 {[%clk 0:00:07]}  Kh5 {[%clk 0:00:05]} 78. Qh3+ {[%clk 0:00:08]}  Bh4 {[%clk 0:00:04]} 79. Qg4+ {[%clk 0:00:08]}  Kh6 {[%clk 0:00:04]} 80. Qg6# {[%clk 0:00:09]} 1-0


[Site "https://www.chess.com"]

[Event "Titled Tuesday Blitz April 05 Late 2022"]
[White "Keymer, Vincent"]
[Black "Dubov, Daniil"]
[WhiteFideId "12940690"]
[BlackFideId "24126055"]
[WhiteElo "2557"]
[BlackElo "2791"]
[Result "1-0"]
[Round "11"]
[TimeControl "180+1"]
[Date "2022.04.05"]
[WhiteClock "0:00:07"]
[BlackClock "0:00:05"]

1. Nf3 {[%clk 0:03:00]}  e6 {[%clk 0:03:00]} 2. c4 {[%clk 0:03:00]}  c5 {[%clk 0:03:01]} 3. g3 {[%clk 0:02:59]}  b6 {[%clk 0:03:01]} 4. Bg2 {[%clk 0:02:59]}  Bb7 {[%clk 0:03:02]} 5. O-O {[%clk 0:02:59]}  Nf6 {[%clk 0:03:02]} 6. d4 {[%clk 0:02:59]}  cxd4 {[%clk 0:03:02]} 7. Qxd4 {[%clk 0:03:00]}  Be7 {[%clk 0:02:58]} 8. Nc3 {[%clk 0:02:57]}  O-O {[%clk 0:02:58]} 9. b3 {[%clk 0:02:56]}  d6 {[%clk 0:02:52]} 10. Rd1 {[%clk 0:02:45]}  Nbd7 {[%clk 0:02:47]} 11. Bb2 {[%clk 0:02:40]}  a6 {[%clk 0:02:44]} 12. g4 {[%clk 0:02:31]}  e5 {[%clk 0:02:38]} 13. Qd2 {[%clk 0:02:31]}  Nxg4 {[%clk 0:02:37]} 14. Nxe5 {[%clk 0:02:31]}  dxe5 {[%clk 0:01:55]} 15. Qxd7 {[%clk 0:02:16]}  Qxd7 {[%clk 0:01:55]} 16. Rxd7 {[%clk 0:02:16]}  Bxg2 {[%clk 0:01:55]} 17. Kxg2 {[%clk 0:02:17]}  Bc5 {[%clk 0:01:45]} 18. Ne4 {[%clk 0:02:12]}  a5 {[%clk 0:01:17]} 19. a4 {[%clk 0:01:39]}  Rfe8 {[%clk 0:00:42]} 20. h3 {[%clk 0:01:08]}  Nf6 {[%clk 0:00:33]} 21. Nxf6+ {[%clk 0:01:08]}  gxf6 {[%clk 0:00:34]} 22. Rad1 {[%clk 0:01:08]}  f5 {[%clk 0:00:28]} 23. Kf3 {[%clk 0:00:53]}  Kg7 {[%clk 0:00:25]} 24. R1d5 {[%clk 0:00:46]}  Kf6 {[%clk 0:00:24]} 25. Rc7 {[%clk 0:00:40]}  Re6 {[%clk 0:00:22]} 26. Rxe5 {[%clk 0:00:25]}  Rxe5 {[%clk 0:00:20]} 27. Rc6+ {[%clk 0:00:25]}  Ke7 {[%clk 0:00:21]} 28. Bxe5 {[%clk 0:00:25]}  Rg8 {[%clk 0:00:22]} 29. Rh6 {[%clk 0:00:21]}  Rg1 {[%clk 0:00:21]} 30. Bf6+ {[%clk 0:00:15]}  Kd7 {[%clk 0:00:20]} 31. Rxh7 {[%clk 0:00:15]}  Rb1 {[%clk 0:00:20]} 32. e3 {[%clk 0:00:13]}  Rxb3 {[%clk 0:00:20]} 33. h4 {[%clk 0:00:13]}  Rb4 {[%clk 0:00:16]} 34. h5 {[%clk 0:00:12]}  Ke6 {[%clk 0:00:14]} 35. Rh6 {[%clk 0:00:11]}  Rxc4 {[%clk 0:00:14]} 36. Bd4+ {[%clk 0:00:08]}  Ke7 {[%clk 0:00:11]} 37. Bf6+ {[%clk 0:00:08]}  Ke6 {[%clk 0:00:10]} 38. Bg5+ {[%clk 0:00:08]}  Kd7 {[%clk 0:00:09]} 39. Rf6 {[%clk 0:00:08]}  Rg4 {[%clk 0:00:07]} 40. Rxf5 {[%clk 0:00:08]}  Ke6 {[%clk 0:00:05]} 41. Kxg4 {[%clk 0:00:07]} 1-0


[Site "https://www.chess.com"]

[Event "Titled Tuesday Blitz April 05 Late 2022"]
[White "Kujawski, Adam"]
[Black "Moral Garcia, Serafin"]
[WhiteFideId "1100920"]
[BlackFideId "2201925"]
[WhiteElo "2348"]
[BlackElo "2494"]
[Result "1-0"]
[Round "11"]
[TimeControl "180+1"]
[Date "2022.04.06"]
[WhiteClock "0:00:02"]
[BlackClock "0:01:09"]

1. e4 {[%clk 0:03:00]}  c5 {[%clk 0:02:59]} 2. Nf3 {[%clk 0:02:59]}  e6 {[%clk 0:02:59]} 3. d4 {[%clk 0:02:59]}  cxd4 {[%clk 0:03:00]} 4. Nxd4 {[%clk 0:02:59]}  Nc6 {[%clk 0:03:00]} 5. Nc3 {[%clk 0:02:59]}  Qc7 {[%clk 0:03:00]} 6. Qd3 {[%clk 0:02:59]}  a6 {[%clk 0:02:56]} 7. Nxc6 {[%clk 0:02:56]}  Qxc6 {[%clk 0:02:57]} 8. Bd2 {[%clk 0:02:47]}  b5 {[%clk 0:02:56]} 9. O-O-O {[%clk 0:02:43]}  Bb7 {[%clk 0:02:50]} 10. f3 {[%clk 0:02:43]}  d6 {[%clk 0:02:48]} 11. Kb1 {[%clk 0:02:42]}  Nf6 {[%clk 0:02:47]} 12. h4 {[%clk 0:02:38]}  Nd7 {[%clk 0:02:43]} 13. h5 {[%clk 0:02:31]}  Ne5 {[%clk 0:02:42]} 14. Qe3 {[%clk 0:02:25]}  Be7 {[%clk 0:02:41]} 15. h6 {[%clk 0:02:20]}  g6 {[%clk 0:02:41]} 16. Qd4 {[%clk 0:01:52]}  Bf6 {[%clk 0:02:35]} 17. f4 {[%clk 0:00:59]}  Ng4 {[%clk 0:02:32]} 18. e5 {[%clk 0:00:58]}  dxe5 {[%clk 0:02:28]} 19. fxe5 {[%clk 0:00:58]}  Nxe5 {[%clk 0:02:28]} 20. Bg5 {[%clk 0:00:47]}  Bxg5 {[%clk 0:02:03]} 21. Qxe5 {[%clk 0:00:41]}  f6 {[%clk 0:02:04]} 22. Qg3 {[%clk 0:00:17]}  O-O {[%clk 0:02:01]} 23. Bd3 {[%clk 0:00:17]}  Rad8 {[%clk 0:01:55]} 24. Rhe1 {[%clk 0:00:14]}  Qd6 {[%clk 0:01:46]} 25. Qg4 {[%clk 0:00:11]}  Qf4 {[%clk 0:01:34]} 26. Qxe6+ {[%clk 0:00:10]}  Kh8 {[%clk 0:01:34]} 27. Qe7 {[%clk 0:00:09]}  Bxh6 {[%clk 0:01:34]} 28. Qxb7 {[%clk 0:00:08]}  b4 {[%clk 0:01:33]} 29. Ne4 {[%clk 0:00:07]}  f5 {[%clk 0:01:28]} 30. Rf1 {[%clk 0:00:06]}  Qe5 {[%clk 0:01:26]} 31. Nf2 {[%clk 0:00:05]}  Bg7 {[%clk 0:01:25]} 32. c3 {[%clk 0:00:03]}  bxc3 {[%clk 0:01:23]} 33. Rfe1 {[%clk 0:00:02]}  Qe6 {[%clk 0:01:13]} 34. Rxe6 {[%clk 0:00:01]}  c2+ {[%clk 0:01:12]} 35. Bxc2 {[%clk 0:00:01]}  Rb8 {[%clk 0:01:11]} 36. Qxb8 {[%clk 0:00:01]}  Rxb8 {[%clk 0:01:11]} 37. b3 {[%clk 0:00:02]}  Rc8 {[%clk 0:01:09]} 38. Red6 {[%clk 0:00:02]} 1-0


[Site "https://www.chess.com"]

[Event "Titled Tuesday Blitz April 05 Late 2022"]
[White "Mikhalsky, Vladimir"]
[Black "Koziorowicz, Michal"]
[WhiteFideId "14144352"]
[BlackFideId "21809194"]
[WhiteElo "2301"]
[BlackElo "2235"]
[Result "1-0"]
[Round "11"]
[TimeControl "180+1"]
[Date "2022.04.05"]
[WhiteClock "0:01:08"]
[BlackClock "0:01:32"]

1. e4 {[%clk 0:03:00]}  c5 {[%clk 0:02:59]} 2. Nf3 {[%clk 0:03:00]}  d6 {[%clk 0:02:59]} 3. Bb5+ {[%clk 0:03:00]}  Bd7 {[%clk 0:02:59]} 4. Bxd7+ {[%clk 0:03:00]}  Qxd7 {[%clk 0:03:00]} 5. c4 {[%clk 0:03:00]}  Nc6 {[%clk 0:03:00]} 6. d4 {[%clk 0:02:59]}  cxd4 {[%clk 0:02:59]} 7. Nxd4 {[%clk 0:03:00]}  g6 {[%clk 0:03:00]} 8. Nc3 {[%clk 0:02:58]}  Bg7 {[%clk 0:03:00]} 9. Be3 {[%clk 0:02:58]}  Nf6 {[%clk 0:03:01]} 10. f3 {[%clk 0:02:58]}  O-O {[%clk 0:03:01]} 11. O-O {[%clk 0:02:58]}  Rfc8 {[%clk 0:03:00]} 12. b3 {[%clk 0:02:57]}  Nxd4 {[%clk 0:03:00]} 13. Bxd4 {[%clk 0:02:57]}  a6 {[%clk 0:03:00]} 14. Na4 {[%clk 0:02:52]}  b5 {[%clk 0:02:51]} 15. Nb6 {[%clk 0:02:51]}  Qb7 {[%clk 0:02:51]} 16. Nxa8 {[%clk 0:02:50]}  Qxa8 {[%clk 0:02:51]} 17. cxb5 {[%clk 0:02:42]}  axb5 {[%clk 0:02:52]} 18. a4 {[%clk 0:02:42]}  Qb7 {[%clk 0:02:50]} 19. a5 {[%clk 0:02:39]}  Rc6 {[%clk 0:02:47]} 20. Rc1 {[%clk 0:02:34]}  Ra6 {[%clk 0:02:43]} 21. b4 {[%clk 0:02:34]}  Nd7 {[%clk 0:02:22]} 22. Bxg7 {[%clk 0:02:32]}  Kxg7 {[%clk 0:02:23]} 23. Qd4+ {[%clk 0:02:29]}  f6 {[%clk 0:02:16]} 24. Qd5 {[%clk 0:02:28]}  Qxd5 {[%clk 0:02:14]} 25. exd5 {[%clk 0:02:28]}  Ne5 {[%clk 0:02:15]} 26. Rfe1 {[%clk 0:02:12]}  Ra7 {[%clk 0:02:13]} 27. Rc8 {[%clk 0:02:04]}  Nd3 {[%clk 0:02:13]} 28. Re4 {[%clk 0:02:02]}  Rb7 {[%clk 0:02:07]} 29. f4 {[%clk 0:01:57]}  g5 {[%clk 0:02:04]} 30. g3 {[%clk 0:01:49]}  Kg6 {[%clk 0:02:01]} 31. Kg2 {[%clk 0:01:46]}  Kf5 {[%clk 0:01:58]} 32. Kf3 {[%clk 0:01:43]}  gxf4 {[%clk 0:01:53]} 33. gxf4 {[%clk 0:01:41]}  Nf2 {[%clk 0:01:53]} 34. Re3 {[%clk 0:01:34]}  Nh3 {[%clk 0:01:49]} 35. Rec3 {[%clk 0:01:30]}  Nxf4 {[%clk 0:01:46]} 36. R3c7 {[%clk 0:01:29]}  Rxc7 {[%clk 0:01:43]} 37. Rxc7 {[%clk 0:01:28]}  Nxd5 {[%clk 0:01:44]} 38. Rb7 {[%clk 0:01:24]}  e5 {[%clk 0:01:41]} 39. a6 {[%clk 0:01:23]}  e4+ {[%clk 0:01:39]} 40. Kg2 {[%clk 0:01:21]}  Ne3+ {[%clk 0:01:35]} 41. Kg1 {[%clk 0:01:20]}  Ng4 {[%clk 0:01:34]} 42. a7 {[%clk 0:01:19]}  e3 {[%clk 0:01:34]} 43. Re7 {[%clk 0:01:18]}  Kf4 {[%clk 0:01:35]} 44. a8=Q {[%clk 0:01:16]}  Ne5 {[%clk 0:01:36]} 45. Rxe5 {[%clk 0:01:15]}  dxe5 {[%clk 0:01:35]} 46. Kf1 {[%clk 0:01:15]}  f5 {[%clk 0:01:34]} 47. Ke2 {[%clk 0:01:14]}  h5 {[%clk 0:01:32]} 48. Qf3+ {[%clk 0:01:11]}  Kg5 {[%clk 0:01:32]} 49. Qxe3+ {[%clk 0:01:08]} 1-0


[Site "https://www.chess.com"]

[Event "Titled Tuesday Blitz April 05 Late 2022"]
[White "Morris-Suzuki, Sophie"]
[Black "Foisor, Sabina-Francesca"]
[WhiteFideId "30922615"]
[BlackFideId "1212915"]
[WhiteElo "2502"]
[BlackElo "2370"]
[Result "1-0"]
[Round "11"]
[TimeControl "180+1"]
[Date "2022.04.06"]
[WhiteClock "0:00:29"]
[BlackClock "0:00:05"]

1. d4 {[%clk 0:03:00]}  d5 {[%clk 0:02:59]} 2. c4 {[%clk 0:03:01]}  e6 {[%clk 0:02:58]} 3. Nc3 {[%clk 0:03:02]}  a6 {[%clk 0:02:55]} 4. Qc2 {[%clk 0:03:02]}  Nf6 {[%clk 0:02:53]} 5. cxd5 {[%clk 0:03:02]}  exd5 {[%clk 0:02:53]} 6. Bg5 {[%clk 0:03:02]}  Be7 {[%clk 0:02:53]} 7. e3 {[%clk 0:03:03]}  Nc6 {[%clk 0:02:40]} 8. a3 {[%clk 0:03:00]}  h6 {[%clk 0:02:32]} 9. Bh4 {[%clk 0:02:59]}  Be6 {[%clk 0:02:13]} 10. Bd3 {[%clk 0:02:59]}  Qd7 {[%clk 0:02:08]} 11. Nf3 {[%clk 0:02:37]}  Nh5 {[%clk 0:01:58]} 12. Bxe7 {[%clk 0:02:33]}  Qxe7 {[%clk 0:01:55]} 13. O-O {[%clk 0:02:24]}  O-O {[%clk 0:01:55]} 14. Ne5 {[%clk 0:02:21]}  Nxe5 {[%clk 0:01:43]} 15. dxe5 {[%clk 0:02:21]}  g6 {[%clk 0:01:41]} 16. f4 {[%clk 0:02:08]}  Ng7 {[%clk 0:01:41]} 17. e4 {[%clk 0:02:08]}  d4 {[%clk 0:01:39]} 18. Ne2 {[%clk 0:02:07]}  c5 {[%clk 0:01:38]} 19. f5 {[%clk 0:02:03]}  Bxf5 {[%clk 0:01:06]} 20. exf5 {[%clk 0:02:01]}  Qxe5 {[%clk 0:01:07]} 21. fxg6 {[%clk 0:01:55]}  fxg6 {[%clk 0:00:55]} 22. Bxg6 {[%clk 0:01:48]}  b5 {[%clk 0:00:44]} 23. Qe4 {[%clk 0:01:27]}  Qxe4 {[%clk 0:00:33]} 24. Bxe4 {[%clk 0:01:27]}  Rae8 {[%clk 0:00:33]} 25. Bd5+ {[%clk 0:01:26]}  Kh8 {[%clk 0:00:32]} 26. Nf4 {[%clk 0:01:23]}  Kh7 {[%clk 0:00:23]} 27. Bc6 {[%clk 0:01:01]}  Re5 {[%clk 0:00:15]} 28. Nd3 {[%clk 0:00:51]}  Rxf1+ {[%clk 0:00:14]} 29. Rxf1 {[%clk 0:00:51]}  Re6 {[%clk 0:00:12]} 30. Bd5 {[%clk 0:00:44]}  Rd6 {[%clk 0:00:12]} 31. Be4+ {[%clk 0:00:44]}  Kg8 {[%clk 0:00:11]} 32. Nxc5 {[%clk 0:00:44]}  Nh5 {[%clk 0:00:08]} 33. Bd3 {[%clk 0:00:36]}  Kg7 {[%clk 0:00:07]} 34. Re1 {[%clk 0:00:32]}  Nf6 {[%clk 0:00:07]} 35. Re6 {[%clk 0:00:31]}  Rd5 {[%clk 0:00:06]} 36. Nxa6 {[%clk 0:00:29]}  Ng4 {[%clk 0:00:05]} 37. Rg6+ {[%clk 0:00:29]} 1-0


[Site "https://www.chess.com"]

[Event "Titled Tuesday Blitz April 05 Late 2022"]
[White "Nasuta, Grzegorz"]
[Black "Pakleza, Zbigniew"]
[WhiteFideId "1141686"]
[BlackFideId "1119290"]
[WhiteElo "2396"]
[BlackElo "2467"]
[Result "0-1"]
[Round "11"]
[TimeControl "180+1"]
[Date "2022.04.05"]
[WhiteClock "0:00:02"]
[BlackClock "0:00:03"]

1. d4 {[%clk 0:03:00]}  d5 {[%clk 0:02:56]} 2. c4 {[%clk 0:02:54]}  c6 {[%clk 0:02:56]} 3. cxd5 {[%clk 0:02:54]}  cxd5 {[%clk 0:02:56]} 4. Bf4 {[%clk 0:02:53]}  Nc6 {[%clk 0:02:56]} 5. e3 {[%clk 0:02:53]}  Qb6 {[%clk 0:02:51]} 6. Qb3 {[%clk 0:02:25]}  Nf6 {[%clk 0:02:45]} 7. Nc3 {[%clk 0:02:23]}  Qxb3 {[%clk 0:02:36]} 8. axb3 {[%clk 0:02:23]}  e6 {[%clk 0:02:36]} 9. h3 {[%clk 0:01:59]}  Bb4 {[%clk 0:02:33]} 10. Bd3 {[%clk 0:01:56]}  Ke7 {[%clk 0:02:30]} 11. Ke2 {[%clk 0:01:56]}  Bd7 {[%clk 0:02:30]} 12. Nf3 {[%clk 0:01:56]}  Rhc8 {[%clk 0:02:29]} 13. Rhc1 {[%clk 0:01:54]}  Na5 {[%clk 0:02:12]} 14. Nd2 {[%clk 0:01:50]}  a6 {[%clk 0:02:05]} 15. g4 {[%clk 0:01:19]}  h6 {[%clk 0:02:04]} 16. f3 {[%clk 0:01:18]}  b5 {[%clk 0:01:25]} 17. h4 {[%clk 0:01:17]}  Nc6 {[%clk 0:01:16]} 18. Bg3 {[%clk 0:00:45]}  Ne8 {[%clk 0:01:12]} 19. g5 {[%clk 0:00:42]}  h5 {[%clk 0:01:02]} 20. Be1 {[%clk 0:00:33]}  Bd6 {[%clk 0:00:52]} 21. f4 {[%clk 0:00:34]}  g6 {[%clk 0:00:49]} 22. Nf3 {[%clk 0:00:34]}  Nb4 {[%clk 0:00:45]} 23. Ne5 {[%clk 0:00:32]}  Nxd3 {[%clk 0:00:41]} 24. Nxd3 {[%clk 0:00:28]}  Ng7 {[%clk 0:00:42]} 25. Ra2 {[%clk 0:00:17]}  Nf5 {[%clk 0:00:33]} 26. b4 {[%clk 0:00:15]}  a5 {[%clk 0:00:23]} 27. Rca1 {[%clk 0:00:15]}  a4 {[%clk 0:00:20]} 28. b3 {[%clk 0:00:15]}  Nxh4 {[%clk 0:00:20]} 29. bxa4 {[%clk 0:00:12]}  bxa4 {[%clk 0:00:21]} 30. Nc5 {[%clk 0:00:10]}  Nf5 {[%clk 0:00:19]} 31. N3xa4 {[%clk 0:00:10]}  Bxa4 {[%clk 0:00:18]} 32. Rxa4 {[%clk 0:00:10]}  Rxa4 {[%clk 0:00:18]} 33. Rxa4 {[%clk 0:00:11]}  h4 {[%clk 0:00:11]} 34. Ra7+ {[%clk 0:00:11]}  Rc7 {[%clk 0:00:11]} 35. Ra8 {[%clk 0:00:10]}  Rc6 {[%clk 0:00:04]} 36. Rh8 {[%clk 0:00:02]}  Rb6 {[%clk 0:00:05]} 37. Kd3 {[%clk 0:00:02]}  Rb8 {[%clk 0:00:03]} 0-1


[Site "https://www.chess.com"]

[Event "Titled Tuesday Blitz April 05 Late 2022"]
[White "Novikova, Galina"]
[Black "Spata, German"]
[WhiteFideId "4157095"]
[BlackFideId "113026"]
[WhiteElo "2397"]
[BlackElo "2583"]
[Result "0-1"]
[Round "11"]
[TimeControl "180+1"]
[Date "2022.04.06"]
[WhiteClock "0:00:54"]
[BlackClock "0:01:13"]

1. e4 {[%clk 0:03:00]}  g6 {[%clk 0:02:55]} 2. d4 {[%clk 0:02:59]}  Bg7 {[%clk 0:02:51]} 3. Nc3 {[%clk 0:03:00]}  c6 {[%clk 0:02:44]} 4. f3 {[%clk 0:02:58]}  d6 {[%clk 0:02:36]} 5. Be3 {[%clk 0:02:58]}  Nf6 {[%clk 0:02:35]} 6. Qd2 {[%clk 0:02:58]}  b5 {[%clk 0:02:35]} 7. O-O-O {[%clk 0:02:57]}  Qa5 {[%clk 0:02:34]} 8. Kb1 {[%clk 0:02:57]}  Be6 {[%clk 0:02:34]} 9. d5 {[%clk 0:02:52]}  cxd5 {[%clk 0:02:33]} 10. Bxb5+ {[%clk 0:02:51]}  Bd7 {[%clk 0:02:32]} 11. Bxd7+ {[%clk 0:02:48]}  Nbxd7 {[%clk 0:02:32]} 12. exd5 {[%clk 0:02:47]}  Rb8 {[%clk 0:02:22]} 13. b3 {[%clk 0:02:34]}  O-O {[%clk 0:02:09]} 14. Nge2 {[%clk 0:02:33]}  Ne5 {[%clk 0:02:05]} 15. Ka1 {[%clk 0:02:06]}  Rfc8 {[%clk 0:01:57]} 16. h4 {[%clk 0:01:49]}  Qa3 {[%clk 0:01:36]} 17. Qc1 {[%clk 0:01:28]}  Qa5 {[%clk 0:01:32]} 18. Qd2 {[%clk 0:01:26]}  h5 {[%clk 0:01:27]} 19. f4 {[%clk 0:01:09]}  Nc4 {[%clk 0:01:16]} 20. bxc4 {[%clk 0:00:56]}  Ne4 {[%clk 0:01:15]} 21. Bd4 {[%clk 0:00:54]}  Nxd2 {[%clk 0:01:13]} 0-1


[Site "https://www.chess.com"]